[Event "Titled Tuesday Blitz April 05 Late 2022"]
[White "Chiku-Ratte, Olivier-Kenta"]
[Black "Harish, Neeraj"]
[WhiteFideId "2614782"]
[BlackFideId "30958130"]
[WhiteElo "2324"]
[BlackElo "1574"]
[Result "1-0"]
[Round "10"]
[TimeControl "180+1"]
[Date "2022.04.06"]
[WhiteClock "0:00:09"]
[BlackClock "0:00:11"]

1. Nf3 {[%clk 0:03:00]}  Nf6 {[%clk 0:02:56]} 2. c4 {[%clk 0:02:56]}  g6 {[%clk 0:02:54]} 3. g3 {[%clk 0:02:54]}  Bg7 {[%clk 0:02:54]} 4. Bg2 {[%clk 0:02:53]}  O-O {[%clk 0:02:54]} 5. O-O {[%clk 0:02:49]}  d5 {[%clk 0:02:49]} 6. cxd5 {[%clk 0:02:40]}  Nxd5 {[%clk 0:02:47]} 7. Nc3 {[%clk 0:02:41]}  Nxc3 {[%clk 0:02:42]} 8. bxc3 {[%clk 0:02:29]}  c5 {[%clk 0:02:40]} 9. Rb1 {[%clk 0:02:25]}  Nc6 {[%clk 0:02:38]} 10. Ne1 {[%clk 0:02:09]}  Qc7 {[%clk 0:02:24]} 11. Nd3 {[%clk 0:01:57]}  c4 {[%clk 0:02:21]} 12. Nb2 {[%clk 0:01:46]}  Bf5 {[%clk 0:02:05]} 13. e4 {[%clk 0:01:35]}  Be6 {[%clk 0:02:00]} 14. Qe2 {[%clk 0:01:36]}  b5 {[%clk 0:01:59]} 15. a4 {[%clk 0:01:33]}  a6 {[%clk 0:01:56]} 16. Nd1 {[%clk 0:01:33]}  Rab8 {[%clk 0:01:40]} 17. axb5 {[%clk 0:01:30]}  axb5 {[%clk 0:01:39]} 18. Ne3 {[%clk 0:01:30]}  Ne5 {[%clk 0:01:36]} 19. f4 {[%clk 0:01:24]}  Nd3 {[%clk 0:01:36]} 20. f5 {[%clk 0:01:23]}  Bd7 {[%clk 0:01:18]} 21. Ba3 {[%clk 0:01:19]}  Bc6 {[%clk 0:01:07]} 22. Nd5 {[%clk 0:01:07]}  Bxd5 {[%clk 0:00:58]} 23. exd5 {[%clk 0:01:08]}  Rfe8 {[%clk 0:00:57]} 24. Kh1 {[%clk 0:01:05]}  Ra8 {[%clk 0:00:34]} 25. Bb4 {[%clk 0:01:02]}  Ra2 {[%clk 0:00:25]} 26. d6 {[%clk 0:00:59]}  Qd7 {[%clk 0:00:22]} 27. dxe7 {[%clk 0:00:48]}  Nxb4 {[%clk 0:00:20]} 28. Rxb4 {[%clk 0:00:48]}  Rxd2 {[%clk 0:00:21]} 29. Qf3 {[%clk 0:00:46]}  Rxe7 {[%clk 0:00:20]} 30. f6 {[%clk 0:00:45]}  Bxf6 {[%clk 0:00:20]} 31. Qxf6 {[%clk 0:00:44]}  Ree2 {[%clk 0:00:19]} 32. Rxb5 {[%clk 0:00:36]}  Qe8 {[%clk 0:00:15]} 33. Rb8 {[%clk 0:00:14]}  Qxb8 {[%clk 0:00:14]} 34. Qxf7+ {[%clk 0:00:14]}  Kh8 {[%clk 0:00:15]} 35. Qf6+ {[%clk 0:00:13]}  Kg8 {[%clk 0:00:15]} 36. Bd5+ {[%clk 0:00:12]}  Rxd5 {[%clk 0:00:15]} 37. Qf7+ {[%clk 0:00:12]}  Kh8 {[%clk 0:00:15]} 38. Qxd5 {[%clk 0:00:12]}  Qe5 {[%clk 0:00:11]} 39. Qxe5+ {[%clk 0:00:10]}  Rxe5 {[%clk 0:00:11]} 40. Rf4 {[%clk 0:00:10]}  Rc5 {[%clk 0:00:08]} 41. Kg2 {[%clk 0:00:10]}  Kg7 {[%clk 0:00:09]} 42. Rd4 {[%clk 0:00:10]}  Kf6 {[%clk 0:00:08]} 43. Rd7 {[%clk 0:00:10]}  h5 {[%clk 0:00:08]} 44. h4 {[%clk 0:00:10]}  g5 {[%clk 0:00:08]} 45. Kf3 {[%clk 0:00:08]}  gxh4 {[%clk 0:00:07]} 46. gxh4 {[%clk 0:00:09]}  Rf5+ {[%clk 0:00:08]} 47. Ke4 {[%clk 0:00:09]}  Re5+ {[%clk 0:00:08]} 48. Kd4 {[%clk 0:00:09]}  Rf5 {[%clk 0:00:09]} 49. Kxc4 {[%clk 0:00:09]}  Rf4+ {[%clk 0:00:10]} 50. Rd4 {[%clk 0:00:09]}  Rxh4 {[%clk 0:00:11]} 51. Rxh4 {[%clk 0:00:09]}  Kg5 {[%clk 0:00:11]} 52. Rd4 {[%clk 0:00:09]} 1-0


[Site "https://www.chess.com"]

[Event "Titled Tuesday Blitz April 05 Late 2022"]
[White "Clawitter, Craig"]
[Black "Levin, Anthony"]
[WhiteFideId "2023105"]
[BlackFideId "30940680"]
[WhiteElo "2212"]
[BlackElo "2051"]
[Result "0-1"]
[Round "10"]
[TimeControl "180+1"]
[Date "2022.04.06"]
[WhiteClock "0:00:02"]
[BlackClock "0:00:10"]

1. e4 {[%clk 0:02:22]}  c5 {[%clk 0:02:56]} 2. Nf3 {[%clk 0:02:21]}  d6 {[%clk 0:02:56]} 3. d4 {[%clk 0:02:20]}  cxd4 {[%clk 0:02:57]} 4. Nxd4 {[%clk 0:02:19]}  Nf6 {[%clk 0:02:58]} 5. Nc3 {[%clk 0:02:20]}  a6 {[%clk 0:02:58]} 6. Be3 {[%clk 0:02:21]}  e5 {[%clk 0:02:57]} 7. Nb3 {[%clk 0:02:21]}  Be6 {[%clk 0:02:57]} 8. f3 {[%clk 0:02:21]}  h5 {[%clk 0:02:57]} 9. Nd5 {[%clk 0:02:19]}  Nxd5 {[%clk 0:02:50]} 10. exd5 {[%clk 0:02:20]}  Bf5 {[%clk 0:02:50]} 11. Be2 {[%clk 0:02:13]}  Nd7 {[%clk 0:02:50]} 12. O-O {[%clk 0:02:12]}  Be7 {[%clk 0:02:45]} 13. Rc1 {[%clk 0:02:03]}  Bg5 {[%clk 0:02:44]} 14. Qd2 {[%clk 0:01:59]}  Bxe3+ {[%clk 0:02:42]} 15. Qxe3 {[%clk 0:02:00]}  O-O {[%clk 0:02:39]} 16. f4 {[%clk 0:01:53]}  exf4 {[%clk 0:02:33]} 17. Qxf4 {[%clk 0:01:53]}  Qb6+ {[%clk 0:02:23]} 18. Kh1 {[%clk 0:01:30]}  Bg6 {[%clk 0:02:24]} 19. c4 {[%clk 0:01:19]}  a5 {[%clk 0:02:19]} 20. Qh4 {[%clk 0:00:43]}  a4 {[%clk 0:02:15]} 21. Nd4 {[%clk 0:00:40]}  Qxb2 {[%clk 0:02:14]} 22. Rcd1 {[%clk 0:00:16]}  Qxa2 {[%clk 0:01:38]} 23. Bxh5 {[%clk 0:00:16]}  Bxh5 {[%clk 0:01:28]} 24. Qxh5 {[%clk 0:00:15]}  Qxc4 {[%clk 0:01:21]} 25. Qg5 {[%clk 0:00:10]}  Ne5 {[%clk 0:01:00]} 26. Nf5 {[%clk 0:00:09]}  Ng6 {[%clk 0:00:59]} 27. Rf3 {[%clk 0:00:05]}  Qe2 {[%clk 0:00:26]} 28. Rdf1 {[%clk 0:00:05]}  a3 {[%clk 0:00:19]} 29. h4 {[%clk 0:00:03]}  a2 {[%clk 0:00:19]} 30. h5 {[%clk 0:00:03]}  a1=Q {[%clk 0:00:18]} 31. hxg6 {[%clk 0:00:03]}  Qf6 {[%clk 0:00:12]} 32. Qh5 {[%clk 0:00:02]}  Qxg6 {[%clk 0:00:10]} 33. Qxg6 {[%clk 0:00:02]}  fxg6 {[%clk 0:00:10]} 34. Ne7+ {[%clk 0:00:02]}  Qxe7 {[%clk 0:00:09]} 35. Rxf8+ {[%clk 0:00:02]}  Rxf8 {[%clk 0:00:10]} 0-1


[Site "https://www.chess.com"]

[Event "Titled Tuesday Blitz April 05 Late 2022"]
[White "D`Arruda, Ricardo D."]
[Black "Quirke, Jeffrey"]
[WhiteFideId "100692"]
[BlackFideId "2013029"]
[WhiteElo "2182"]
[BlackElo "2238"]
[Result "1-0"]
[Round "10"]
[TimeControl "180+1"]
[Date "2022.04.06"]
[WhiteClock "0:00:19"]
[BlackClock "0:00:07"]

1. e4 {[%clk 0:02:58]}  c5 {[%clk 0:02:59]} 2. Nf3 {[%clk 0:02:58]}  e6 {[%clk 0:03:00]} 3. b3 {[%clk 0:02:58]}  b6 {[%clk 0:02:58]} 4. Bb2 {[%clk 0:02:57]}  Bb7 {[%clk 0:02:58]} 5. d3 {[%clk 0:02:56]}  Nc6 {[%clk 0:02:55]} 6. Nbd2 {[%clk 0:02:55]}  Nf6 {[%clk 0:02:52]} 7. g3 {[%clk 0:02:56]}  d6 {[%clk 0:02:51]} 8. Bg2 {[%clk 0:02:56]}  Be7 {[%clk 0:02:51]} 9. O-O {[%clk 0:02:56]}  O-O {[%clk 0:02:52]} 10. Qe2 {[%clk 0:02:56]}  Qc7 {[%clk 0:02:52]} 11. Rfe1 {[%clk 0:02:54]}  Rfe8 {[%clk 0:02:51]} 12. a4 {[%clk 0:02:48]}  a6 {[%clk 0:02:50]} 13. Nc4 {[%clk 0:02:45]}  b5 {[%clk 0:02:38]} 14. Ne3 {[%clk 0:02:43]}  Nd7 {[%clk 0:02:26]} 15. Ng4 {[%clk 0:02:24]}  Bf8 {[%clk 0:02:22]} 16. h4 {[%clk 0:02:23]}  Nde5 {[%clk 0:02:09]} 17. Ngxe5 {[%clk 0:02:17]}  dxe5 {[%clk 0:02:07]} 18. Ng5 {[%clk 0:01:59]}  h6 {[%clk 0:01:52]} 19. Nf3 {[%clk 0:01:54]}  Nd4 {[%clk 0:01:44]} 20. Nxd4 {[%clk 0:01:52]}  cxd4 {[%clk 0:01:43]} 21. Rec1 {[%clk 0:01:48]}  Rec8 {[%clk 0:01:39]} 22. c3 {[%clk 0:01:43]}  Qd7 {[%clk 0:01:34]} 23. c4 {[%clk 0:01:40]}  bxa4 {[%clk 0:01:31]} 24. Rxa4 {[%clk 0:01:37]}  a5 {[%clk 0:01:30]} 25. Rca1 {[%clk 0:01:31]}  Bb4 {[%clk 0:01:27]} 26. Bc1 {[%clk 0:01:27]}  Bc6 {[%clk 0:01:27]} 27. R4a2 {[%clk 0:01:26]}  Bc3 {[%clk 0:01:18]} 28. Bb2 {[%clk 0:01:23]}  Bxb2 {[%clk 0:01:16]} 29. Qxb2 {[%clk 0:01:24]}  Qc7 {[%clk 0:01:14]} 30. Qd2 {[%clk 0:01:22]}  Rcb8 {[%clk 0:01:11]} 31. Rxa5 {[%clk 0:01:00]}  Rxa5 {[%clk 0:01:06]} 32. Qxa5 {[%clk 0:01:00]}  Qxa5 {[%clk 0:01:06]} 33. Rxa5 {[%clk 0:01:00]}  Rxb3 {[%clk 0:01:07]} 34. Bf1 {[%clk 0:00:58]}  f6 {[%clk 0:01:02]} 35. Ra6 {[%clk 0:00:58]}  Bd7 {[%clk 0:00:58]} 36. Rd6 {[%clk 0:00:58]}  Rb7 {[%clk 0:00:55]} 37. f4 {[%clk 0:00:50]}  Kf7 {[%clk 0:00:52]} 38. fxe5 {[%clk 0:00:45]}  fxe5 {[%clk 0:00:53]} 39. Ra6 {[%clk 0:00:42]}  Rb2 {[%clk 0:00:49]} 40. Ra5 {[%clk 0:00:38]}  Kf6 {[%clk 0:00:44]} 41. Ra7 {[%clk 0:00:38]}  Be8 {[%clk 0:00:42]} 42. Ra8 {[%clk 0:00:33]}  Bh5 {[%clk 0:00:39]} 43. Rf8+ {[%clk 0:00:33]}  Ke7 {[%clk 0:00:38]} 44. Rf2 {[%clk 0:00:33]}  Rb1 {[%clk 0:00:30]} 45. Kg2 {[%clk 0:00:31]}  Be8 {[%clk 0:00:25]} 46. Be2 {[%clk 0:00:30]}  Rc1 {[%clk 0:00:21]} 47. Bf1 {[%clk 0:00:25]}  Rc3 {[%clk 0:00:21]} 48. Ra2 {[%clk 0:00:23]}  Bh5 {[%clk 0:00:19]} 49. Kf2 {[%clk 0:00:22]}  Bd1 {[%clk 0:00:18]} 50. Be2 {[%clk 0:00:22]}  Bxe2 {[%clk 0:00:17]} 51. Kxe2 {[%clk 0:00:22]}  Kf6 {[%clk 0:00:15]} 52. Kd2 {[%clk 0:00:23]}  h5 {[%clk 0:00:14]} 53. Rc2 {[%clk 0:00:23]}  Ra3 {[%clk 0:00:10]} 54. c5 {[%clk 0:00:22]}  Ra7 {[%clk 0:00:10]} 55. c6 {[%clk 0:00:22]}  Rc7 {[%clk 0:00:10]} 56. Rc5 {[%clk 0:00:20]}  Ke7 {[%clk 0:00:09]} 57. Rxe5 {[%clk 0:00:20]}  Kd6 {[%clk 0:00:10]} 58. Rxh5 {[%clk 0:00:20]}  Rxc6 {[%clk 0:00:10]} 59. Rg5 {[%clk 0:00:20]}  Rc7 {[%clk 0:00:10]} 60. h5 {[%clk 0:00:19]}  e5 {[%clk 0:00:09]} 61. Rg6+ {[%clk 0:00:19]}  Kc5 {[%clk 0:00:07]} 62. Re6 {[%clk 0:00:19]} 1-0


[Site "https://www.chess.com"]

[Event "Titled Tuesday Blitz April 05 Late 2022"]
[White "Dimakiling, Oliver"]
[Black "Sztokbant, Bernardo Vainzoff"]
[WhiteFideId "5202248"]
[BlackFideId "2115956"]
[WhiteElo "2670"]
[BlackElo "2535"]
[Result "1-0"]
[Round "10"]
[TimeControl "180+1"]
[Date "2022.04.06"]
[WhiteClock "0:00:42"]
[BlackClock "0:00:04"]

1. e4 {[%clk 0:03:00]}  c6 {[%clk 0:02:59]} 2. d3 {[%clk 0:03:00]}  d5 {[%clk 0:03:00]} 3. Nd2 {[%clk 0:03:01]}  e5 {[%clk 0:03:00]} 4. Ngf3 {[%clk 0:03:01]}  Bd6 {[%clk 0:03:00]} 5. d4 {[%clk 0:03:00]}  exd4 {[%clk 0:02:57]} 6. Bd3 {[%clk 0:03:00]}  Ne7 {[%clk 0:02:51]} 7. O-O {[%clk 0:02:56]}  Nd7 {[%clk 0:02:39]} 8. Nxd4 {[%clk 0:02:53]}  O-O {[%clk 0:02:34]} 9. exd5 {[%clk 0:02:52]}  Nxd5 {[%clk 0:02:33]} 10. Nf5 {[%clk 0:02:51]}  N7f6 {[%clk 0:02:32]} 11. Nxd6 {[%clk 0:02:41]}  Qxd6 {[%clk 0:02:33]} 12. Ne4 {[%clk 0:02:40]}  Nxe4 {[%clk 0:02:23]} 13. Bxe4 {[%clk 0:02:40]}  Qe5 {[%clk 0:02:07]} 14. Qf3 {[%clk 0:02:37]}  Be6 {[%clk 0:01:57]} 15. c3 {[%clk 0:02:33]}  Nf6 {[%clk 0:01:42]} 16. Bc2 {[%clk 0:02:32]}  Bd5 {[%clk 0:01:38]} 17. Qh3 {[%clk 0:02:28]}  h6 {[%clk 0:01:32]} 18. Be3 {[%clk 0:02:26]}  Qe6 {[%clk 0:01:22]} 19. Qh4 {[%clk 0:02:21]}  Qg4 {[%clk 0:01:12]} 20. Qxg4 {[%clk 0:02:21]}  Nxg4 {[%clk 0:01:13]} 21. Bd4 {[%clk 0:02:21]}  Rfe8 {[%clk 0:01:12]} 22. Rfe1 {[%clk 0:02:20]}  f6 {[%clk 0:00:58]} 23. Rxe8+ {[%clk 0:02:12]}  Rxe8 {[%clk 0:00:58]} 24. f3 {[%clk 0:02:07]}  Ne5 {[%clk 0:00:48]} 25. Bxa7 {[%clk 0:02:06]}  Ra8 {[%clk 0:00:46]} 26. Bd4 {[%clk 0:02:05]}  Rxa2 {[%clk 0:00:45]} 27. Rxa2 {[%clk 0:02:05]}  Bxa2 {[%clk 0:00:45]} 28. b3 {[%clk 0:02:05]}  Nd7 {[%clk 0:00:30]} 29. c4 {[%clk 0:02:01]}  Kf7 {[%clk 0:00:09]} 30. Kf2 {[%clk 0:02:01]}  Ke6 {[%clk 0:00:10]} 31. Ke3 {[%clk 0:02:00]}  b5 {[%clk 0:00:08]} 32. cxb5 {[%clk 0:01:59]}  cxb5 {[%clk 0:00:08]} 33. Kd3 {[%clk 0:01:59]}  Kd5 {[%clk 0:00:08]} 34. Be3 {[%clk 0:01:53]}  b4 {[%clk 0:00:08]} 35. Kd2 {[%clk 0:01:52]}  Nc5 {[%clk 0:00:08]} 36. Bxc5 {[%clk 0:01:50]}  Kxc5 {[%clk 0:00:09]} 37. Kc1 {[%clk 0:01:51]}  Kd4 {[%clk 0:00:10]} 38. Kb2 {[%clk 0:01:51]}  Bxb3 {[%clk 0:00:07]} 39. Kxb3 {[%clk 0:01:51]}  Ke3 {[%clk 0:00:08]} 40. Be4 {[%clk 0:01:47]}  Kf2 {[%clk 0:00:08]} 41. g4 {[%clk 0:01:45]}  Kg2 {[%clk 0:00:05]} 42. h4 {[%clk 0:01:44]}  Kg3 {[%clk 0:00:05]} 43. h5 {[%clk 0:01:44]}  f5 {[%clk 0:00:03]} 44. Bxf5 {[%clk 0:01:38]}  Kxf3 {[%clk 0:00:03]} 45. Kxb4 {[%clk 0:01:38]}  Kf4 {[%clk 0:00:04]} 46. Kc5 {[%clk 0:01:38]}  Ke5 {[%clk 0:00:04]} 47. Kc6 {[%clk 0:01:38]}  Kf6 {[%clk 0:00:05]} 48. Kd7 {[%clk 0:01:38]}  Kf7 {[%clk 0:00:05]} 49. Bg6+ {[%clk 0:01:34]}  Kg8 {[%clk 0:00:04]} 50. Ke8 {[%clk 0:01:33]}  Kh8 {[%clk 0:00:04]} 51. Bf7 {[%clk 0:01:32]}  Kh7 {[%clk 0:00:05]} 52. Kf8 {[%clk 0:01:31]}  Kh8 {[%clk 0:00:05]} 53. Be6 {[%clk 0:01:30]}  Kh7 {[%clk 0:00:05]} 54. Kf7 {[%clk 0:01:30]}  Kh8 {[%clk 0:00:05]} 55. Ke7 {[%clk 0:00:46]}  Kh7 {[%clk 0:00:05]} 56. Bf5+ {[%clk 0:00:46]}  Kg8 {[%clk 0:00:05]} 57. Bc2 {[%clk 0:00:45]}  Kh8 {[%clk 0:00:06]} 58. Kf7 {[%clk 0:00:42]}  g5 {[%clk 0:00:05]} 59. Kg6 {[%clk 0:00:42]}  Kg8 {[%clk 0:00:04]} 60. Kxh6 {[%clk 0:00:42]} 1-0


[Site "https://www.chess.com"]

[Event "Titled Tuesday Blitz April 05 Late 2022"]
[White "Dubov, Daniil"]
[Black "Kobalia, Mikhail"]
[WhiteFideId "24126055"]
[BlackFideId "4119150"]
[WhiteElo "2791"]
[BlackElo "2667"]
[Result "1-0"]
[Round "10"]
[TimeControl "180+1"]
[Date "2022.04.05"]
[WhiteClock "0:00:06"]
[BlackClock "0:00:02"]

1. a3 {[%clk 0:03:00]}  d5 {[%clk 0:02:59]} 2. Nf3 {[%clk 0:03:00]}  Bg4 {[%clk 0:02:58]} 3. Ne5 {[%clk 0:02:59]}  Bf5 {[%clk 0:02:57]} 4. c4 {[%clk 0:02:58]}  e6 {[%clk 0:02:51]} 5. d4 {[%clk 0:02:53]}  Nf6 {[%clk 0:02:46]} 6. Nc3 {[%clk 0:02:53]}  Nbd7 {[%clk 0:02:40]} 7. Bg5 {[%clk 0:02:49]}  Be7 {[%clk 0:02:38]} 8. e3 {[%clk 0:02:49]}  O-O {[%clk 0:02:36]} 9. f4 {[%clk 0:02:37]}  Ne4 {[%clk 0:02:31]} 10. Bxe7 {[%clk 0:02:31]}  Qxe7 {[%clk 0:02:31]} 11. Nxe4 {[%clk 0:02:30]}  Bxe4 {[%clk 0:02:30]} 12. Bd3 {[%clk 0:02:22]}  Bxd3 {[%clk 0:02:08]} 13. Qxd3 {[%clk 0:02:19]}  Nxe5 {[%clk 0:02:01]} 14. fxe5 {[%clk 0:02:11]}  f6 {[%clk 0:01:59]} 15. O-O {[%clk 0:02:05]}  fxe5 {[%clk 0:01:59]} 16. dxe5 {[%clk 0:02:06]}  Qc5 {[%clk 0:01:54]} 17. cxd5 {[%clk 0:02:02]}  Qxd5 {[%clk 0:01:53]} 18. Qc3 {[%clk 0:02:02]}  Rxf1+ {[%clk 0:01:41]} 19. Rxf1 {[%clk 0:02:01]}  c5 {[%clk 0:01:42]} 20. e4 {[%clk 0:01:51]}  Qxe4 {[%clk 0:00:59]} 21. Qxc5 {[%clk 0:01:50]}  h6 {[%clk 0:00:56]} 22. h3 {[%clk 0:01:45]}  Rd8 {[%clk 0:00:39]} 23. Rf2 {[%clk 0:01:20]}  Kh7 {[%clk 0:00:37]} 24. Qc2 {[%clk 0:00:30]}  Rd3 {[%clk 0:00:27]} 25. Rf3 {[%clk 0:00:15]}  Rd4 {[%clk 0:00:10]} 26. Qxe4+ {[%clk 0:00:14]}  Rxe4 {[%clk 0:00:11]} 27. Rf7 {[%clk 0:00:14]}  b5 {[%clk 0:00:10]} 28. Rxa7 {[%clk 0:00:13]}  Rxe5 {[%clk 0:00:10]} 29. Ra5 {[%clk 0:00:13]}  Rd5 {[%clk 0:00:06]} 30. Ra6 {[%clk 0:00:13]}  Rd2 {[%clk 0:00:05]} 31. b4 {[%clk 0:00:12]}  Ra2 {[%clk 0:00:05]} 32. Rxe6 {[%clk 0:00:12]}  Rxa3 {[%clk 0:00:05]} 33. Rb6 {[%clk 0:00:13]}  Ra2 {[%clk 0:00:05]} 34. Kh2 {[%clk 0:00:07]}  Rb2 {[%clk 0:00:05]} 35. Rxb5 {[%clk 0:00:07]}  Kg6 {[%clk 0:00:06]} 36. Kg3 {[%clk 0:00:06]}  Kf6 {[%clk 0:00:06]} 37. Kf3 {[%clk 0:00:05]}  Rb3+ {[%clk 0:00:06]} 38. Kg4 {[%clk 0:00:06]}  Rb2 {[%clk 0:00:06]} 39. Rb6+ {[%clk 0:00:05]}  Kf7 {[%clk 0:00:06]} 40. g3 {[%clk 0:00:06]}  Rb3 {[%clk 0:00:06]} 41. h4 {[%clk 0:00:06]}  g6 {[%clk 0:00:06]} 42. b5 {[%clk 0:00:04]}  h5+ {[%clk 0:00:06]} 43. Kf4 {[%clk 0:00:04]}  Kg7 {[%clk 0:00:07]} 44. Rb8 {[%clk 0:00:04]}  Rb4+ {[%clk 0:00:06]} 45. Kf3 {[%clk 0:00:04]}  Rb3+ {[%clk 0:00:06]} 46. Kf4 {[%clk 0:00:04]}  Rb4+ {[%clk 0:00:07]} 47. Ke5 {[%clk 0:00:05]}  Rb3 {[%clk 0:00:07]} 48. b6 {[%clk 0:00:05]}  g5 {[%clk 0:00:08]} 49. hxg5 {[%clk 0:00:04]}  Rxg3 {[%clk 0:00:06]} 50. Kd6 {[%clk 0:00:03]}  Rd3+ {[%clk 0:00:05]} 51. Kc6 {[%clk 0:00:03]}  Rc3+ {[%clk 0:00:05]} 52. Kd6 {[%clk 0:00:04]}  Rd3+ {[%clk 0:00:05]} 53. Kc5 {[%clk 0:00:04]}  Rc3+ {[%clk 0:00:04]} 54. Kb4 {[%clk 0:00:04]}  Rc1 {[%clk 0:00:04]} 55. Rd8 {[%clk 0:00:04]}  Rb1+ {[%clk 0:00:04]} 56. Kc5 {[%clk 0:00:04]}  Rc1+ {[%clk 0:00:03]} 57. Kb5 {[%clk 0:00:04]}  Rb1+ {[%clk 0:00:03]} 58. Kc6 {[%clk 0:00:05]}  Rc1+ {[%clk 0:00:04]} 59. Kd6 {[%clk 0:00:05]}  Rb1 {[%clk 0:00:03]} 60. Kc7 {[%clk 0:00:05]}  Rc1+ {[%clk 0:00:03]} 61. Kb8 {[%clk 0:00:05]}  Kg6 {[%clk 0:00:03]} 62. Rg8+ {[%clk 0:00:04]}  Kf5 {[%clk 0:00:03]} 63. g6 {[%clk 0:00:04]}  Kf6 {[%clk 0:00:03]} 64. Rh8 {[%clk 0:00:03]}  Rc5 {[%clk 0:00:02]} 65. b7 {[%clk 0:00:03]}  Kxg6 {[%clk 0:00:02]} 66. Ka7 {[%clk 0:00:03]}  Ra5+ {[%clk 0:00:01]} 67. Kb6 {[%clk 0:00:04]}  Ra1 {[%clk 0:00:02]} 68. b8=Q {[%clk 0:00:04]}  Rb1+ {[%clk 0:00:02]} 69. Kc5 {[%clk 0:00:05]}  Rxb8 {[%clk 0:00:02]} 70. Rxb8 {[%clk 0:00:06]}  Kf5 {[%clk 0:00:02]} 71. Kd4 {[%clk 0:00:06]}  Kf4 {[%clk 0:00:02]} 72. Rf8+ {[%clk 0:00:06]} 1-0


[Site "https://www.chess.com"]

[Event "Titled Tuesday Blitz April 05 Late 2022"]
[White "Estrada Nieto, Julian"]
[Black "Diaz Perez, Michel Alejandro"]
[WhiteFideId "5101018"]
[BlackFideId "3517179"]
[WhiteElo "2252"]
[BlackElo "2313"]
[Result "0-1"]
[Round "10"]
[TimeControl "180+1"]
[Date "2022.04.05"]
[WhiteClock "0:00:01"]
[BlackClock "0:00:50"]

1. e4 {[%clk 0:03:00]}  d6 {[%clk 0:02:57]} 2. d4 {[%clk 0:03:00]}  Nf6 {[%clk 0:02:58]} 3. Nc3 {[%clk 0:03:00]}  Nbd7 {[%clk 0:02:59]} 4. Nf3 {[%clk 0:03:00]}  e5 {[%clk 0:02:59]} 5. Bc4 {[%clk 0:03:00]}  Be7 {[%clk 0:02:58]} 6. O-O {[%clk 0:03:00]}  O-O {[%clk 0:02:58]} 7. Re1 {[%clk 0:03:01]}  c6 {[%clk 0:02:58]} 8. a4 {[%clk 0:03:01]}  h6 {[%clk 0:02:55]} 9. b3 {[%clk 0:02:59]}  Re8 {[%clk 0:02:54]} 10. Bb2 {[%clk 0:02:59]}  Bf8 {[%clk 0:02:53]} 11. Bd3 {[%clk 0:02:57]}  Qc7 {[%clk 0:02:51]} 12. Ne2 {[%clk 0:02:53]}  b6 {[%clk 0:02:49]} 13. c4 {[%clk 0:02:47]}  Bb7 {[%clk 0:02:40]} 14. Ng3 {[%clk 0:02:46]}  g6 {[%clk 0:02:39]} 15. Qd2 {[%clk 0:02:45]}  Bg7 {[%clk 0:02:37]} 16. h4 {[%clk 0:02:39]}  exd4 {[%clk 0:02:31]} 17. Nxd4 {[%clk 0:02:34]}  d5 {[%clk 0:02:28]} 18. cxd5 {[%clk 0:02:30]}  cxd5 {[%clk 0:02:27]} 19. Rac1 {[%clk 0:02:24]}  Qd8 {[%clk 0:02:22]} 20. Nb5 {[%clk 0:02:10]}  dxe4 {[%clk 0:02:14]} 21. Bc4 {[%clk 0:02:07]}  Nc5 {[%clk 0:02:13]} 22. Nd6 {[%clk 0:01:55]}  Re7 {[%clk 0:01:42]} 23. Rcd1 {[%clk 0:01:51]}  Rd7 {[%clk 0:01:40]} 24. Nxf7 {[%clk 0:01:50]}  Kh7 {[%clk 0:01:37]} 25. Nxd8 {[%clk 0:01:45]}  Rxd2 {[%clk 0:01:36]} 26. Rxd2 {[%clk 0:01:44]}  Bc8 {[%clk 0:01:37]} 27. h5 {[%clk 0:01:27]}  gxh5 {[%clk 0:01:34]} 28. Nf7 {[%clk 0:01:15]}  h4 {[%clk 0:01:30]} 29. Nf1 {[%clk 0:01:07]}  h3 {[%clk 0:01:26]} 30. Rd8 {[%clk 0:00:56]}  hxg2 {[%clk 0:01:20]} 31. Kxg2 {[%clk 0:00:56]}  Nh5 {[%clk 0:01:18]} 32. Bxg7 {[%clk 0:00:50]}  Kxg7 {[%clk 0:01:18]} 33. Ne3 {[%clk 0:00:41]}  Nd3 {[%clk 0:01:15]} 34. Rg1 {[%clk 0:00:37]}  Kf6 {[%clk 0:01:12]} 35. Nd5+ {[%clk 0:00:31]}  Kxf7 {[%clk 0:01:10]} 36. Nxb6+ {[%clk 0:00:25]}  Ke7 {[%clk 0:01:09]} 37. Nxa8 {[%clk 0:00:22]}  Kxd8 {[%clk 0:01:08]} 38. Rd1 {[%clk 0:00:20]}  Bf5 {[%clk 0:01:07]} 39. f3 {[%clk 0:00:17]}  Kc8 {[%clk 0:01:02]} 40. fxe4 {[%clk 0:00:16]}  Bxe4+ {[%clk 0:01:03]} 41. Kf1 {[%clk 0:00:16]}  Nb2 {[%clk 0:01:00]} 42. Be6+ {[%clk 0:00:13]}  Kb7 {[%clk 0:00:56]} 43. Rd8 {[%clk 0:00:06]}  Nf4 {[%clk 0:00:53]} 44. Bc8+ {[%clk 0:00:04]}  Kc6 {[%clk 0:00:53]} 45. Rf8 {[%clk 0:00:01]}  Nfd3 {[%clk 0:00:50]} 0-1


[Site "https://www.chess.com"]

[Event "Titled Tuesday Blitz April 05 Late 2022"]
[White "Gatterer, Florian"]
[Black "Cagara, Paulina"]
[WhiteFideId "811688"]
[BlackFideId "1124870"]
[WhiteElo "2218"]
[BlackElo "1780"]
[Result "1-0"]
[Round "10"]
[TimeControl "180+1"]
[Date "2022.04.06"]
[WhiteClock "0:00:12"]
[BlackClock "0:00:15"]

1. b3 {[%clk 0:03:00]}  f5 {[%clk 0:02:59]} 2. Bb2 {[%clk 0:02:58]}  Nf6 {[%clk 0:02:59]} 3. Nf3 {[%clk 0:02:55]}  d6 {[%clk 0:02:59]} 4. d4 {[%clk 0:02:55]}  g6 {[%clk 0:02:59]} 5. g3 {[%clk 0:02:55]}  Bg7 {[%clk 0:02:58]} 6. h4 {[%clk 0:02:55]}  h5 {[%clk 0:02:52]} 7. Nbd2 {[%clk 0:02:51]}  O-O {[%clk 0:02:50]} 8. e3 {[%clk 0:02:50]}  Nc6 {[%clk 0:02:50]} 9. Ng5 {[%clk 0:02:49]}  Qe8 {[%clk 0:02:34]} 10. Bg2 {[%clk 0:02:40]}  e5 {[%clk 0:02:34]} 11. dxe5 {[%clk 0:02:27]}  dxe5 {[%clk 0:02:33]} 12. O-O {[%clk 0:02:25]}  e4 {[%clk 0:02:33]} 13. Nc4 {[%clk 0:02:22]}  Be6 {[%clk 0:02:25]} 14. Qe2 {[%clk 0:02:18]}  Rd8 {[%clk 0:02:23]} 15. Rad1 {[%clk 0:02:16]}  Qe7 {[%clk 0:02:21]} 16. Ba3 {[%clk 0:02:13]}  Qe8 {[%clk 0:01:49]} 17. Bxf8 {[%clk 0:02:04]}  Bxf8 {[%clk 0:01:46]} 18. Rxd8 {[%clk 0:01:55]}  Nxd8 {[%clk 0:01:45]} 19. Rd1 {[%clk 0:01:53]}  Nd5 {[%clk 0:01:39]} 20. Nxe6 {[%clk 0:01:34]}  Qxe6 {[%clk 0:01:38]} 21. Qd2 {[%clk 0:01:30]}  c6 {[%clk 0:01:38]} 22. Qd4 {[%clk 0:01:16]}  b6 {[%clk 0:01:29]} 23. Qe5 {[%clk 0:01:10]}  Bg7 {[%clk 0:01:21]} 24. Qxe6+ {[%clk 0:01:00]}  Nxe6 {[%clk 0:01:21]} 25. Bf1 {[%clk 0:00:50]}  Bf6 {[%clk 0:01:14]} 26. a4 {[%clk 0:00:38]}  Kg7 {[%clk 0:01:13]} 27. Nd6 {[%clk 0:00:34]}  Be5 {[%clk 0:01:08]} 28. Nc8 {[%clk 0:00:25]}  Nc5 {[%clk 0:00:38]} 29. c4 {[%clk 0:00:23]}  Nc3 {[%clk 0:00:36]} 30. Rd8 {[%clk 0:00:21]}  a5 {[%clk 0:00:30]} 31. Nxb6 {[%clk 0:00:20]}  g5 {[%clk 0:00:29]} 32. hxg5 {[%clk 0:00:18]}  h4 {[%clk 0:00:29]} 33. gxh4 {[%clk 0:00:16]}  f4 {[%clk 0:00:30]} 34. Nd7 {[%clk 0:00:15]}  Nxd7 {[%clk 0:00:24]} 35. Rxd7+ {[%clk 0:00:14]}  Kg6 {[%clk 0:00:25]} 36. exf4 {[%clk 0:00:14]}  Bxf4 {[%clk 0:00:24]} 37. Kg2 {[%clk 0:00:13]}  Kh5 {[%clk 0:00:21]} 38. Kh3 {[%clk 0:00:13]}  e3 {[%clk 0:00:18]} 39. fxe3 {[%clk 0:00:13]}  Bxe3 {[%clk 0:00:18]} 40. Rd6 {[%clk 0:00:12]}  Ne4 {[%clk 0:00:15]} 41. Rh6# {[%clk 0:00:12]} 1-0


[Site "https://www.chess.com"]